bitfinex-derivatives/quotes_SOLF0:USTF0_20250202
["timestamp","ask_amount","ask_price","bid_price","bid_amount"]
[1738466499216,1.6076,211.13,210.95,34.70177077]
[1738466499217,36.30937077,211.13,210.95,34.70177077]
[1738466499616,0.03387155,211.03,210.98,0.0305134]
[1738466500012,34.70177077,211.09,210.93,3.372]
[1738466500321,1.7387,211.18,210.99,34.70177077]
[1738466500322,0.0322322,211.03,210.99,34.70177077]
[1738466500511,4.7375,211.14,210.99,34.70177077]
[1738466500712,1.7387,211.18,210.96,4.0]
[1738466500713,34.70177077,211.21,211.03,34.70177077]
[1738466500917,34.70177077,211.17,210.99,34.70177077]
[1738466501116,4.7381,211.11,211.03,4.7397]
[1738466501419,34.70177077,211.17,210.99,34.70177077]
[1738466501819,34.70177077,211.17,210.93,5.5972]
[1738466501820,0.0327626,211.1,211.06,0.03513976]
[1738466502213,34.70177077,211.17,210.99,34.70177077]
[1738466502518,0.03085535,211.1,211.06,0.03461531]
[1738466503018,0.03085535,211.1,211.06,1.531e-05]
[1738466503215,4.7389,211.07,211.06,1.531e-05]
[1738466506112,34.70177077,211.09,210.88,1.6105]
[1738466506113,70.58844154,211.09,210.88,1.6105]
[1738466506312,34.70177077,211.01,210.88,1.6105]
[1738466506611,4.7412,210.97,210.88,1.6105]
[1738466506816,35.88667077,211.09,210.92,4.7422]
[1738466507018,34.70177077,211.05,210.88,1.6105]
[1738466507215,0.03426824,211.03,210.98,0.03055699]
[1738466507419,34.70177077,211.05,210.98,0.03055699]
[1738466507620,35.88667077,211.09,210.98,0.03055699]
[1738466507919,4.7405,211.0,210.98,0.03055699]
[1738466508217,4.7405,211.0,210.84,1.6643]
[1738466508218,34.70177077,211.0,210.84,1.6643]
[1738466508425,34.70177077,210.96,210.84,1.6643]
[1738466509324,4.7431,210.89,210.88,0.03177045]
[1738466509921,0.03641341,210.92,210.88,0.03177045]
[1738466510127,4.7428,210.9,210.88,0.03177045]
[1738466511222,4.7428,210.9,210.88,7.045e-05]
[1738466511424,0.03641341,210.92,210.88,7.045e-05]
[1738466511727,0.03641341,210.92,210.88,4.74317045]
[1738466511926,0.03641341,210.92,210.88,7.045e-05]
[1738466512127,4.7427,210.9,210.88,7.045e-05]
[1738466512326,0.03641341,210.92,210.88,7.045e-05]
[1738466513223,4.7427,210.9,210.88,7.045e-05]
[1738466513429,0.03641341,210.92,210.88,7.045e-05]
[1738466513830,4.7427,210.9,210.88,7.045e-05]
[1738466514027,0.03641341,210.92,210.88,7.045e-05]
[1738466514630,4.7427,210.9,210.88,7.045e-05]
[1738466514830,0.03641341,210.92,210.88,7.045e-05]
[1738466516335,0.03641341,210.92,210.88,34.70184122]
[1738466516835,4.77871341,210.92,210.88,34.70184122]
[1738466517323,4.7426,210.91,210.88,34.70184122]
[1738466517628,0.03641341,210.92,210.88,34.70184122]
[1738466517834,4.7425,210.91,210.88,7.045e-05]
[1738466518028,0.03641341,210.92,210.88,7.045e-05]
[1738466519535,3.289,211.06,210.89,21.36996488]
[1738466519732,3.289,211.06,210.88,39.45894686]
[1738466520036,4.7403,211.01,210.92,34.71584686]
[1738466520229,34.71584686,211.11,210.93,1.7714]
[1738466520527,0.03160538,211.04,211.0,0.03522788]
[1738466520736,34.71584686,211.03,210.82,34.71584686]
[1738466520931,34.71584686,210.99,210.78,3.5107]
[1738466521132,38.65584686,210.99,210.78,3.5107]
[1738466521332,3.94,210.99,210.85,34.71584686]
[1738466521630,4.7435,210.87,210.81,34.71584686]
[1738466521833,38.65584686,210.99,210.81,34.71584686]
[1738466522031,0.03544855,210.86,210.82,0.03433143]
[1738466522229,38.65584686,210.99,210.81,34.71584686]
[1738466522429,4.7418,210.94,210.83,4.7443]
[1738466522634,0.03514536,210.86,210.82,0.03025549]
[1738466522838,38.65584686,210.99,210.81,34.71584686]
[1738466523133,0.03299263,210.86,210.82,0.02993262]
[1738466523331,38.65584686,210.99,210.78,3.5107]
[1738466523532,4.7429,210.89,210.88,5.898e-05]
[1738466527632,4.7428,210.9,210.88,5.898e-05]
[1738466527938,0.03396359,210.91,210.88,5.898e-05]
[1738466528134,4.7428,210.9,210.88,5.898e-05]
[1738466530434,8.6628,210.9,210.88,5.898e-05]
[1738466530629,4.7428,210.9,210.88,5.898e-05]
[1738466533544,0.03396359,210.91,210.88,5.898e-05]
[1738466533841,4.7429,210.89,210.88,5.898e-05]
[1738466534240,0.03396359,210.91,210.88,5.898e-05]
[1738466534841,4.7429,210.89,210.88,5.898e-05]
[1738466540945,0.03396359,210.91,210.88,5.898e-05]
[1738466541844,1.7173,211.02,210.88,34.71590584]
[1738466542043,18.61100404,211.04,210.88,39.45894686]
[1738466542345,18.61100404,211.04,210.85,5.2335]
[1738466542545,34.71584686,211.02,210.85,5.2335]
[1738466542742,4.7412,210.97,210.85,5.2335]
[1738466542953,34.71584686,211.02,210.85,5.2335]
[1738466543144,0.03363912,210.96,210.91,0.03352011]
[1738466545951,0.03363912,210.96,210.92,4.7422]
[1738466546151,21.37204668,211.06,210.91,0.03352011]
[1738466546351,21.37204668,211.06,210.87,21.37204668]
[1738466546651,4.7409,210.98,210.87,21.37204668]
[1738466546842,21.37204668,211.06,210.87,21.37204668]
[1738466547246,4.7404,211.01,210.91,4.7424]
[1738466547453,0.03289878,210.99,210.94,0.03204789]
[1738466547750,21.37204668,211.1,210.94,0.03204789]
[1738466548052,4.7397,211.04,210.97,4.7411]
[1738466548252,4.7397,211.04,210.91,21.37204668]
[1738466548553,4.7396,211.04,210.91,21.37204668]
[1738466548751,0.02990218,211.0,210.95,0.03396202]
[1738466548949,21.37204668,211.1,210.97,4.7411]
[1738466549152,21.37204668,211.1,210.87,21.37204668]
[1738466549153,0.03603358,211.0,210.95,21.40304826]
[1738466549356,7.2725,211.19,210.99,21.37204668]
[1738466549651,0.81714712,211.18,210.95,21.37204668]
[1738466549948,21.37204668,211.12,210.99,4.7406]
[1738466550149,21.37204668,211.12,210.95,21.37204668]
[1738466550652,0.03498575,211.06,211.01,0.0327531]
[1738466551245,0.03498575,211.06,211.02,4.74]
[1738466551453,39.98305072,211.2,211.03,21.37204668]
[1738466551649,18.61100404,211.2,211.03,21.37204668]
[1738466552149,18.61100404,211.25,211.07,21.37204668]
[1738466552448,21.37204668,211.2,211.08,1.8274]
[1738466552646,21.37204668,211.16,210.98,21.37204668]
[1738466552851,21.37204668,211.16,211.02,1.7791]
[1738466553851,0.03177143,211.11,211.07,0.03169678]
[1738466554053,4.7387,211.08,211.07,0.03169678]
[1738466554652,0.03177143,211.11,211.07,0.03169678]
[1738466556159,4.7383,211.1,211.07,0.03169678]
[1738466556356,0.03177143,211.11,211.07,0.03169678]
[1738466557761,4.7382,211.1,211.07,0.03169678]
[1738466558060,0.03177143,211.11,211.07,0.03169678]
[1738466558362,4.7403,211.01,210.9,21.37204668]
[1738466558552,4.7403,211.01,210.91,1.8463]
[1738466558751,4.7403,211.01,210.93,4.7419]
[1738466558955,4.7405,211.0,210.93,4.7419]
[1738466559155,4.7405,211.0,210.91,1.8463]
[1738466559558,0.03131806,210.99,210.94,0.03460473]
[1738466560359,4.77201806,210.99,210.94,0.03460473]
[1738466560559,0.03131806,210.99,210.94,0.03460473]
[1738466560962,4.7414,210.96,210.94,0.03460473]
[1738466561362,4.7432,210.88,210.82,5.3692]
[1738466561661,1.8108,210.98,210.82,5.3692]
[1738466561855,4.7425,210.91,210.83,4.7441]
[1738466562568,0.03060263,210.89,210.85,0.03153452]
[1738466563874,0.03060263,210.89,210.86,4.7435]
[1738466564263,0.03060263,210.89,210.85,0.03153452]
[1738466564768,25.19204668,211.04,210.85,0.03153452]
[1738466565071,25.19204668,211.04,210.84,21.37204668]
[1738466565866,0.03004128,210.96,210.92,0.03176603]
[1738466566373,4.7412,210.97,210.9,4.7427]
[1738466566673,0.03141906,210.96,210.92,0.03295]
[1738466566872,4.77281906,210.96,210.92,0.03295]
[1738466567369,4.742,210.94,210.92,0.03295]
[1738466567568,4.742,210.94,210.92,5e-05]
[1738466567768,21.37204668,210.93,210.76,21.37204668]
[1738466568071,21.37204668,210.93,210.73,1.7181]
[1738466568072,23.18814668,210.93,210.73,1.7181]
[1738466568469,4.7434,210.87,210.78,4.7454]
[1738466568674,1.8161,210.93,210.76,21.37204668]
[1738466568972,0.03522513,210.87,210.82,0.03306694]
[1738466569166,4.7437,210.86,210.82,0.03306694]
[1738466569364,0.03522513,210.87,210.82,0.03306694]
[1738466571273,21.37204668,210.85,210.56,150.34299601]
[1738466571469,21.37204668,210.75,210.58,80.96465516]
[1738466571872,4.7471,210.71,210.6,4.7494]
[1738466572072,21.37204668,210.79,210.58,80.96465516]
[1738466572472,4.7477,210.68,210.66,0.03020373]
[1738466572766,21.37204668,210.75,210.58,80.96465516]
[1738466572970,0.03297772,210.69,210.58,80.96465516]
[1738466573169,4.7482,210.66,210.65,0.03282568]
[1738466573571,0.03297772,210.69,210.65,0.03282568]
[1738466574174,4.78047772,210.69,210.65,0.03282568]
[1738466574474,0.03297772,210.69,210.65,0.03282568]
[1738466574675,4.7479,210.67,210.65,0.03282568]
[1738466574875,0.03297772,210.69,210.65,0.03282568]
[1738466576974,4.7453,210.79,210.68,4.7477]
[1738466577269,3.92,210.81,210.68,4.7477]
[1738466577473,4.7453,210.79,210.7,4.7472]
[1738466578175,0.03375277,210.77,210.72,0.03614007]
[1738466579678,21.40579945,210.77,210.72,4.007e-05]
[1738466579970,0.03375277,210.77,210.72,4.007e-05]
[1738466580175,87.94004004,210.76,210.42,77.42215516]
[1738466580379,21.37204668,210.54,210.42,77.42215516]
[1738466580676,21.37204668,210.54,210.49,7.61e-06]
[1738466580879,4.7517,210.5,210.49,7.61e-06]
[1738466581176,21.37204668,210.5,210.38,1.7605]
[1738466581375,21.37204668,210.5,210.36,77.42215516]
[1738466581874,4.7521,210.49,210.38,4.7543]
[1738466582080,4.7521,210.49,210.36,77.42215516]
[1738466582081,34.89051259,210.56,210.36,112.31266775]
[1738466582277,34.89051259,210.56,210.37,1.7289]
[1738466582580,1.8451,210.63,210.44,34.89051259]
[1738466582875,34.89051259,210.64,210.51,0.03207945]
[1738466583077,4.7485,210.65,210.51,0.03207945]
[1738466583281,93.96,210.72,210.52,34.89051259]
[1738466583282,34.89051259,210.72,210.52,34.89051259]
[1738466583583,34.89051259,210.76,210.64,4.7484]
[1738466583781,34.89051259,210.76,210.65,1.845]
[1738466583984,0.03008182,210.72,210.68,0.03221899]
[1738466584284,4.02,210.85,210.67,34.89051259]
[1738466584682,6.574e-05,210.72,210.68,0.032044]
[1738466584881,20.45610404,210.86,210.68,1.8493]
[1738466585181,1.8451,210.86,210.68,1.8493]
[1738466585782,4.7446,210.82,210.71,4.7468]
[1738466586083,0.03097167,210.79,210.75,0.03274703]
[1738466588283,34.89051259,210.91,210.75,0.03274703]
[1738466588485,34.89051259,210.91,210.75,34.92325962]
[1738466588787,34.89051259,210.91,210.75,34.89051259]
[1738466589381,34.89051259,210.91,210.75,39.63651259]
[1738466589581,0.03398867,210.85,210.81,0.03014238]
[1738466590083,4.7444,210.83,210.81,0.03014238]
[1738466590887,4.7441,210.84,210.81,0.03014238]
[1738466591082,0.03398867,210.85,210.81,0.03014238]
[1738466594087,0.03398867,210.85,210.82,4.7444]
[1738466594382,0.03398867,210.85,210.81,0.03014238]
[1738466594885,34.89051259,210.96,210.81,0.03014238]
[1738466595288,34.89051259,210.96,210.79,1.7311]
[1738466596080,34.89051259,211.0,210.87,4.7433]
[1738466596281,0.03170341,210.9,210.87,4.7433]
[1738466596484,34.89051259,211.0,210.91,0.03268381]
[1738466596683,34.89051259,211.0,210.83,1.8212]
[1738466596987,34.89051259,211.0,210.93,0.03210875]
[1738466597486,4.7419,210.94,210.93,0.03210875]
[1738466597888,0.03217948,210.99,210.96,4.7413]
[1738466598089,0.03217948,210.99,210.95,34.89051259]
[1738466598292,0.82941898,211.12,210.95,34.89051259]
[1738466598492,0.82941898,211.12,210.91,34.89051259]
[1738466598493,34.89051259,211.09,210.91,34.89051259]
[1738466598685,34.89051259,211.05,210.87,34.89051259]
[1738466598884,3.96,211.14,210.83,1.8212]
[1738466598885,4.7414,210.96,210.85,4.7437]
[1738466599087,34.89051259,211.01,210.83,36.71171259]
[1738466599485,0.03480417,210.94,210.9,0.03017287]
[1738466600992,4.7425,210.91,210.9,0.03017287]
[1738466602787,0.03480417,210.94,210.9,0.03017287]
[1738466604094,4.742,210.93,210.9,0.03017287]
[1738466604291,0.03480417,210.94,210.9,0.03017287]
[1738466604986,4.7423,210.92,210.9,0.03017287]
[1738466607294,34.92531676,210.94,210.77,4.7455]
[1738466607491,34.89051259,210.94,210.75,34.89051259]
[1738466607692,4.7441,210.84,210.75,34.89051259]
[1738466608197,0.03309041,210.82,210.77,0.0360969]
[1738466608897,0.03309041,210.82,210.79,34.89051259]
[1738466609092,34.89051259,210.98,210.79,34.89051259]
[1738466609295,34.89051259,210.98,210.83,4.7442]
[1738466609496,4.7432,210.88,210.79,34.89051259]
[1738466609793,4.7432,210.88,210.82,4.7444]
[1738466609998,4.7423,210.92,210.83,21.37981726]
[1738466610199,0.03379459,210.87,210.83,21.41280906]
[1738466610398,21.37981726,211.02,210.87,4.7434]
[1738466610702,21.37981726,211.02,210.83,21.41280906]
[1738466610703,4.7422,210.93,210.83,21.37981726]
[1738466610999,25.33981726,211.02,210.83,21.37981726]
[1738466611200,4.7426,210.91,210.84,4.7439]
[1738466611400,4.7426,210.91,210.83,21.37981726]
[1738466611702,0.0305436,210.9,210.85,0.03460793]
[1738466611898,34.73361462,211.01,210.8,4.7448]
[1738466612099,3.96,211.02,210.76,34.73361462]
[1738466612100,0.03102352,210.9,210.85,0.03080418]
[1738466612297,34.73361462,210.97,210.76,34.73361462]
[1738466612503,0.03078878,210.9,210.85,0.03544781]
[1738466613501,0.03078878,210.9,210.85,4.77924781]
[1738466613703,0.03078878,210.9,210.85,0.03544781]
[1738466614808,4.7436,210.86,210.85,0.03544781]
[1738466615300,4.7431,210.89,210.85,0.03544781]
[1738466615502,0.03078878,210.9,210.85,0.03544781]
[1738466616204,4.7433,210.88,210.85,0.03544781]
[1738466616403,0.03078878,210.9,210.85,0.03544781]
[1738466617808,4.7436,210.86,210.85,0.03544781]
[1738466618109,34.73361462,210.89,210.72,1.8175]
[1738466618308,4.7462,210.75,210.72,1.8175]
[1738466618509,34.73361462,210.85,210.72,1.8175]
[1738466618903,4.7457,210.77,210.72,1.8175]
[1738466619100,4.77644359,210.77,210.72,1.84795475]
[1738466619299,0.03074359,210.77,210.72,36.58156937]
[1738466619501,4.7445,210.82,210.75,4.746]
[1738466619704,34.73361462,210.89,210.73,1.7649]
[1738466619901,3.92,210.92,210.73,1.7649]
[1738466620303,4.7435,210.87,210.77,4.7456]
[1738466620600,0.033833,210.84,210.8,0.03229663]
[1738466620803,4.7432,210.88,210.78,4.7454]
[1738466621000,0.03035008,210.84,210.8,0.03073457]
[1738466621205,34.73361462,210.89,210.72,34.73361462]
[1738466621402,4.7443,210.83,210.8,0.0364816]
[1738466621600,0.03166513,210.84,210.8,0.0364816]
[1738466622811,4.7446,210.82,210.8,0.0364816]
[1738466624009,0.03166513,210.84,210.8,0.0364816]
[1738466624213,84.36295874,211.01,210.8,34.77009622]
[1738466624512,4.7418,210.94,210.86,4.7434]
[1738466624709,84.36295874,211.01,210.87,1.8206]
[1738466625409,0.03118745,210.96,210.91,0.02991322]
[1738466626109,4.7423,210.92,210.91,0.02991322]
[1738466626413,4.7423,210.92,210.78,1.8512]
[1738466626414,34.73361462,210.92,210.78,1.8512]
[1738466626614,34.73361462,210.88,210.78,1.8512]
[1738466626917,4.7446,210.82,210.78,1.8512]
[1738466627516,4.7451,210.8,210.78,0.03246409]
[1738466627814,0.03587791,210.82,210.78,0.03246409]
[1738466628715,0.03587791,210.82,210.79,4.7451]
[1738466629105,3.9,210.94,210.78,0.03246409]
[1738466629306,3.9,210.94,210.76,34.73361462]
[1738466629514,3.9,210.94,210.78,4.7452]
[1738466629717,3.9,210.94,210.76,34.73361462]
[1738466630009,4.744,210.85,210.78,4.7454]
[1738466630214,4.744,210.85,210.83,0.03006064]
[1738466630514,4.744,210.85,210.72,34.73361462]
[1738466630715,4.744,210.85,210.82,0.03225047]
[1738466630917,0.03204109,210.81,210.76,0.03593739]
[1738466631117,34.73361462,210.85,210.71,6.598]
[1738466631416,4.7451,210.8,210.76,0.03510669]
[1738466631614,0.03320946,210.81,210.76,0.03510669]
[1738466633717,4.7456,210.77,210.76,0.03510669]
[1738466633917,0.03320946,210.81,210.76,0.03510669]
[1738466635517,2.7012,210.93,210.76,34.76872131]
[1738466635722,2.7012,210.93,210.76,34.73361462]
[1738466635917,34.73361462,210.86,210.71,1.8512]
[1738466636120,4.7446,210.82,210.71,6.5982]
[1738466636320,34.73361462,210.86,210.71,1.8512]
[1738466636523,34.73361462,210.9,210.71,1.8512]
[1738466636719,0.03239547,210.81,210.76,0.03203178]
[1738466636915,0.03239547,210.81,210.71,36.58481462]
[1738466637222,1.7545,210.93,210.79,34.73361462]
[1738466638020,18.61100404,210.97,210.83,34.73361462]
[1738466638420,0.0312082,210.92,210.91,4.7424]
[1738466638620,18.61100404,210.97,210.88,0.03316597]
[1738466639914,34.73361462,210.94,210.88,0.03316597]
[1738466641518,4.7427,210.9,210.88,0.03316597]
[1738466642224,4.7441,210.84,210.74,77.42215516]
[1738466642523,34.73361462,210.9,210.74,77.42215516]
[1738466642720,1.7345,210.94,210.74,77.42215516]
[1738466642927,34.73361462,210.86,210.74,77.42215516]
[1738466643421,34.73361462,210.9,210.78,0.03117906]
[1738466643626,0.03336315,210.82,210.78,0.03117906]
[1738466643825,34.73361462,210.9,210.74,77.42215516]
[1738466644016,4.77521813,210.82,210.78,0.03612176]
[1738466644218,0.03061813,210.82,210.78,0.03612176]
[1738466649726,36.46811462,210.94,210.78,0.03612176]
[1738466649930,36.46811462,210.94,210.77,34.73361462]
[1738466650137,4.7428,210.9,210.77,34.73361462]
[1738466650533,34.73361462,210.98,210.82,34.73361462]
[1738466650735,4.7419,210.94,210.85,4.7437]
[1738466651033,0.03571286,210.92,210.88,0.03042989]
[1738466651929,4.7428,210.9,210.88,0.03042989]
[1738466652133,0.03571286,210.92,210.88,0.03042989]
[1738466653338,4.7428,210.9,210.88,0.03042989]
[1738466653639,34.73361462,210.9,210.73,34.73361462]
[1738466653831,4.7432,210.88,210.74,1.7491]
[1738466654837,0.03021206,210.83,210.79,0.03384742]
[1738466655048,34.73361462,210.94,210.74,1.7491]
[1738466655236,0.03505009,210.83,210.79,0.03322544]
[1738466655436,4.7436,210.87,210.74,1.7491]
[1738466655633,0.03103837,210.83,210.81,4.7447]
[1738466655837,34.73361462,210.98,210.77,34.73361462]
[1738466657031,4.743,210.89,210.85,0.03194037]
[1738466657231,0.03217981,210.9,210.77,34.73361462]
[1738466657436,34.73361462,210.98,210.85,0.03556769]
[1738466657633,0.03392168,210.86,210.83,4.7441]
[1738466657832,34.73361462,210.98,210.89,0.03387003]
[1738466658042,1.6173,211.0,210.81,34.73361462]
[1738466658235,4.742,210.93,210.91,0.03393344]
[1738466659633,4.7441,210.84,210.77,34.73361462]
[1738466659838,34.73361462,210.94,210.74,1.7491]
[1738466660438,34.73361462,210.9,210.74,1.7491]
[1738466660840,0.03302882,210.84,210.8,0.03627093]
[1738466661337,4.7445,210.82,210.8,0.03627093]
[1738466661737,0.03302882,210.84,210.8,0.03627093]
[1738466662845,4.7443,210.83,210.8,0.03627093]
[1738466663144,0.03302882,210.84,210.81,4.7446]
[1738466663338,0.03302882,210.84,210.8,0.03627093]
[1738466663944,4.77712882,210.84,210.8,0.03627093]
[1738466664341,0.03302882,210.84,210.8,0.03627093]
[1738466665044,0.03302882,210.84,210.8,4.78107093]
[1738466666043,0.03302882,210.84,210.8,0.03627093]
[1738466666847,4.7446,210.82,210.8,0.03627093]
[1738466667047,0.03302882,210.84,210.8,0.03627093]
[1738466667348,4.7447,210.81,210.8,0.03627093]
[1738466667546,34.73361462,210.83,210.65,34.73361462]
[1738466668049,4.7461,210.76,210.69,4.7472]
[1738466668342,21.40774093,210.87,210.67,21.40774093]
[1738466668740,0.03439524,210.79,210.75,0.03140906]
[1738466668942,3.9,210.88,210.71,21.40774093]
[1738466669143,0.03149913,210.79,210.75,0.03223728]
[1738466669345,4.7445,210.82,210.76,4.7459]
[1738466669552,0.03419243,210.79,210.75,0.03333963]
[1738466669744,4.7448,210.81,210.72,4.7466]
[1738466669949,0.0325365,210.79,210.75,0.03482607]
[1738466671849,0.0325365,210.79,210.61,34.76572465]
[1738466672149,34.76572465,210.86,210.57,94.60095225]
[1738466672150,34.76572465,210.74,210.6,5.4078]
[1738466672451,4.7478,210.68,210.61,4.7492]
[1738466672643,34.76572465,210.74,210.6,1.7289]
[1738466672846,1.751,210.73,210.6,1.7289]
[1738466673154,0.03189767,210.69,210.65,0.03335821]
[1738466673551,4.748,210.67,210.65,0.03335821]
[1738466674153,4.77949767,210.69,210.65,0.03335821]
[1738466674353,0.03189767,210.69,210.65,0.03335821]
[1738466675751,1.7571,210.85,210.67,34.76572465]
[1738466675957,1.7571,210.85,210.68,1.8411]
[1738466676649,1.7571,210.85,210.63,34.76572465]
[1738466676953,0.03364798,210.79,210.74,0.035269]
[1738466677153,4.7459,210.76,210.74,0.035269]
[1738466677452,0.03364798,210.79,210.74,0.035269]
[1738466677849,4.7454,210.78,210.74,0.035269]
[1738466678354,0.03364798,210.79,210.74,0.035269]
[1738466678853,4.7459,210.76,210.74,0.035269]
[1738466680149,4.7456,210.78,210.74,0.035269]
[1738466680555,0.03364798,210.79,210.74,0.035269]
[1738466682454,0.03364798,210.79,210.77,4.7456]
[1738466683146,0.03364798,210.79,210.75,4.7459]
[1738466683352,0.03364798,210.79,210.74,0.035269]
[1738466685660,1.8442,210.89,210.74,34.80099365]
[1738466685860,1.8442,210.89,210.74,34.76572465]
[1738466686057,34.76572465,210.86,210.67,1.8238]
[1738466686258,34.76572465,210.86,210.7,34.76572465]
[1738466686457,1.8442,210.89,210.7,34.76572465]
[1738466686662,4.7434,210.88,210.81,4.7447]
[1738466686860,0.0314875,210.82,210.81,4.7447]
[1738466687057,35.86272465,210.94,210.74,34.76572465]
[1738466688060,34.76572465,210.94,210.74,34.76572465]
[1738466688261,0.03639707,210.86,210.82,0.03256638]
[1738466689060,4.7443,210.83,210.82,0.03256638]
[1738466690861,4.7443,210.83,210.67,1.8238]
[1738466690862,34.80212172,210.86,210.68,1.8547]
[1738466691061,34.76572465,210.86,210.69,4.7474]
[1738466691364,34.76572465,210.86,210.68,1.8547]
[1738466691663,4.7455,210.78,210.68,1.8547]
[1738466691862,34.76572465,210.86,210.68,1.8547]
[1738466692065,0.03615811,210.75,210.71,0.03346259]
[1738466692260,0.03615811,210.75,210.74,4.7463]
[1738466692460,0.03032721,210.75,210.71,0.03136008]
[1738466693864,4.7465,210.73,210.71,0.03136008]
[1738466694669,21.41122999,210.73,210.59,1.7821]
[1738466695166,4.7486,210.64,210.59,1.7821]
[1738466695874,4.78002127,210.64,210.59,1.81620139]
[1738466697073,0.03142127,210.64,210.59,0.03410139]
[1738466697773,0.03142127,210.64,210.62,4.749]
[1738466698075,1.8222,210.75,210.59,34.86111212]
[1738466698270,1.8222,210.75,210.59,34.82701073]
[1738466698671,41.36401073,210.8,210.63,34.82701073]
[1738466698872,4.7462,210.75,210.67,4.7478]
[1738466699073,37.56401073,210.8,210.64,3.4432]
[1738466699376,0.03629293,210.73,210.69,0.03532894]
[1738466699573,4.78299293,210.73,210.69,0.03532894]
[1738466699879,0.03629293,210.73,210.69,0.03532894]
[1738466700073,4.747,210.71,210.69,0.03532894]
[1738466702273,0.03629293,210.73,210.69,0.03532894]
[1738466703969,0.03629293,210.73,210.71,4.7469]
[1738466704171,34.82701073,210.84,210.7,1.7587]
[1738466704774,34.82701073,210.8,210.7,1.7587]
[1738466705076,34.82701073,210.8,210.63,34.82701073]
[1738466705277,4.746,210.76,210.65,4.7483]
[1738466705476,0.0313249,210.74,210.69,0.03269255]
[1738466705878,4.747,210.71,210.69,0.03269255]
[1738466706180,0.0313249,210.74,210.69,0.03269255]
[1738466706982,4.7452,210.79,210.73,4.7465]
[1738466707181,4.7452,210.79,210.7,1.6481]
[1738466707480,4.7448,210.81,210.72,4.7468]
[1738466707682,1.6935,210.85,210.7,1.6481]
[1738466707882,34.82701073,210.84,210.67,34.82701073]
[1738466708074,4.7453,210.79,210.75,0.03204597]
[1738466708274,0.03207923,210.8,210.75,0.03204597]
[1738466708579,4.7453,210.79,210.75,0.03204597]
[1738466708781,0.03207923,210.8,210.75,0.03204597]
[1738466709479,4.7453,210.79,210.75,0.03204597]
[1738466709877,0.03207923,210.8,210.75,0.03204597]
[1738466710183,0.03207923,210.8,210.75,4.77814597]
[1738466710385,0.03207923,210.8,210.75,0.03204597]
[1738466710586,0.03207923,210.8,210.75,4.77804597]
[1738466710784,0.03207923,210.8,210.76,1.6824]
[1738466712886,0.03207923,210.8,210.76,4.7458]
[1738466713280,0.03207923,210.8,210.75,0.03204597]
[1738466713681,4.7452,210.79,210.75,0.03204597]
[1738466715590,0.03207923,210.8,210.75,0.03204597]
[1738466716085,4.7455,210.78,210.75,0.03204597]
[1738466716281,0.03207923,210.8,210.75,0.03204597]
[1738466716684,4.7459,210.76,210.75,0.03204597]
[1738466720887,6.3578,210.79,210.75,0.03204597]
[1738466721092,0.03207923,210.8,210.75,0.03204597]
[1738466721389,4.7458,210.77,210.75,0.03204597]
[1738466721793,0.03207923,210.8,210.75,0.03204597]
[1738466722098,4.7458,210.77,210.75,0.03204597]
[1738466722295,0.03207923,210.8,210.75,0.03204597]
[1738466723895,0.03207923,210.8,210.75,1.69854597]
[1738466724095,4.7438,210.86,210.79,4.7452]
[1738466724494,4.7438,210.86,210.76,1.7565]
[1738466724896,4.7433,210.88,210.77,21.39792566]
[1738466725198,1.5993,210.93,210.77,21.39792566]
[1738466725497,0.03403893,210.85,210.8,0.03324516]
[1738466725694,0.03403893,210.85,210.79,4.7451]
[1738466725895,0.03403893,210.85,210.8,0.03429026]
[1738466726290,21.39792566,210.84,210.8,0.03429026]
[1738466726494,21.39792566,210.84,210.66,1.6315]
[1738466726794,21.39792566,210.84,210.66,3.3485]
[1738466726994,22.73132566,210.84,210.66,3.3485]
[1738466727300,21.39792566,210.8,210.66,1.717]
[1738466727502,1.6342,210.79,210.66,1.717]
[1738466727697,0.03127692,210.75,210.71,0.03402037]
[1738466729001,4.7467,210.73,210.71,0.03402037]
[1738466729397,4.7482,210.66,210.61,1.6132]
[1738466730498,4.78396561,210.66,210.61,1.64438971]
[1738466731199,0.03576561,210.66,210.61,1.64438971]
[1738466731406,4.7488,210.63,210.61,1.64438971]
[1738466731605,0.03576561,210.66,210.61,1.64438971]
[1738466732002,4.7485,210.65,210.61,1.64438971]
[1738466733105,0.03576561,210.66,210.61,1.64438971]
[1738466733303,0.03576561,210.66,210.61,0.03118971]
[1738466735306,4.749,210.62,210.61,0.03118971]
[1738466739512,21.39792566,210.64,210.48,3.3993]
[1738466739715,21.39792566,210.6,210.4,21.39792566]